fUST/lending_fUST_20240614
["ID","MTS","AMOUNT","RATE_DAILY","PERIOD"]
[329426932,1718332254795,-500.0,0.00019178,2]
[329426933,1718332254810,-500.0,0.00019178,2]
[329426934,1718332254825,-500.0,0.00019178,2]
[329426935,1718332254844,-500.0,0.00019178,2]
[329426936,1718332254867,-500.0,0.00019178,2]
[329426937,1718332254890,-500.0,0.00019178,2]
[329426938,1718332254905,-500.0,0.00019178,2]
[329426939,1718332254920,-500.0,0.00019178,2]
[329426940,1718332254933,-500.0,0.00019178,2]
[329426941,1718332254948,-496.46726752,0.00019178,2]
[329426942,1718332254961,-500.0,0.00019178,2]
[329426943,1718332254974,-500.0,0.00019178,2]
[329426944,1718332254997,-500.0,0.00019178,2]
[329426945,1718332255008,-500.0,0.00019178,2]
[329426946,1718332255020,-500.0,0.00019178,2]
[329426947,1718332255033,-500.0,0.00019178,2]
[329426948,1718332255051,-500.0,0.00019178,2]
[329426949,1718332255062,-500.0,0.00019178,2]
[329426950,1718332255075,-500.0,0.00019178,2]
[329426951,1718332255097,-500.0,0.00019178,2]
[329426952,1718332255120,-399.72569273,0.00019178,2]
[329426953,1718332255138,-500.0,0.00019178,2]
[329426954,1718332255150,-218.11635,0.00019178,2]
[329426955,1718332255165,-551.10663794,0.00019178,2]
[329426956,1718332255176,-551.10663794,0.00019178,2]
[329426957,1718332255186,-551.10663794,0.00019178,2]
[329426958,1718332255201,-551.10663794,0.00019178,2]
[329426959,1718332255213,-551.10663794,0.00019178,2]
[329426960,1718332255224,-551.10663794,0.00019178,2]
[329426961,1718332255234,-551.10663794,0.00019178,2]
[329426962,1718332255261,-551.10663794,0.00019178,2]
[329426963,1718332255271,-551.10663794,0.00019178,2]
[329426964,1718332255282,-551.10663794,0.00019178,2]
[329426965,1718332255294,-551.10663794,0.00019178,2]
[329426966,1718332255304,-551.10663788,0.00019178,2]
[329426967,1718332255315,-500.0,0.00019178,2]
[329426968,1718332255325,-404.901838,0.00019178,2]
[329426969,1718332255337,-306.08659368,0.00019178,2]
[329426970,1718332255348,-166.20646004,0.00019178,2]
[329426971,1718332255360,-1000.0,0.00019178,2]
[329426972,1718332255373,-1000.0,0.00019178,2]
[329426973,1718332255397,-500.0,0.00019178,2]
[329426974,1718332255420,-368.74128354,0.00019178,2]
[329426975,1718332255435,-500.0,0.00019178,2]
[329426976,1718332255446,-500.0,0.00019178,2]
[329426977,1718332255456,-486.83785569,0.00019178,2]
[329426978,1718332255467,-154.21639446,0.00019178,2]
[329426979,1718332255477,-345.78360554,0.00019178,2]
[329426980,1718332255488,-500.0,0.00019178,2]
[329426981,1718332255546,-376.34590479,0.00019178,2]
[329426982,1718332255558,-500.0,0.00019178,2]
[329426983,1718332255577,-508.14508001,0.00019178,2]
[329426984,1718332255594,-256.72854594,0.00019178,2]
[329426985,1718332255608,-500.0,0.00019178,2]
[329426986,1718332255620,-500.0,0.00019178,2]
[329426987,1718332255642,-375.78397046,0.00019178,2]
[329426988,1718332255675,-500.0,0.00019178,2]
[329426989,1718332255694,-500.0,0.00019178,2]
[329426990,1718332255727,-467.77047502,0.00019178,2]
[329426991,1718332255747,-500.18608979,0.00019178,2]
[329426992,1718332255764,-500.0,0.00019178,2]
[329426993,1718332255781,-500.0,0.00019178,2]
[329426994,1718332255801,-501.12424627,0.00019178,2]
[329426995,1718332255814,-500.0,0.00019178,2]
[329426996,1718332255825,-500.0,0.00019178,2]
[329426997,1718332255850,-500.0,0.00019178,2]
[329426998,1718332255871,-200.0,0.00019178,2]
[329426999,1718332255895,-524.60864892,0.00019178,2]
[329427000,1718332255912,-500.0,0.00019178,2]
[329427001,1718332255930,-512.8852817,0.00019178,2]
[329427002,1718332255953,-500.0,0.00019178,2]
[329427003,1718332255973,-500.0,0.00019178,2]
[329427004,1718332255995,-222.25122045,0.00019178,2]
[329427005,1718332256005,-500.0,0.00019178,2]
[329427006,1718332256020,-500.0,0.00019178,2]
[329427007,1718332256031,-500.0,0.00019178,2]
[329427008,1718332256043,-500.0,0.00019178,2]
[329427009,1718332256056,-500.0,0.00019178,2]
[329427010,1718332256074,-500.0,0.00019178,2]
[329427011,1718332256085,-500.0,0.00019178,2]
[329427012,1718332256096,-500.0,0.00019178,2]
[329427013,1718332256107,-500.0,0.00019178,2]
[329427014,1718332256119,-500.0,0.00019178,2]
[329427015,1718332256130,-500.0,0.00019178,2]
[329427016,1718332256141,-500.0,0.00019178,2]
[329427017,1718332256154,-500.0,0.00019178,2]
[329427018,1718332256185,-500.0,0.00019178,2]
[329427019,1718332256198,-500.0,0.00019178,2]
[329427020,1718332256209,-500.0,0.00019178,2]
[329427021,1718332256225,-500.0,0.00019178,2]
[329427022,1718332256236,-500.0,0.00019178,2]
[329427023,1718332256257,-500.0,0.00019178,2]
[329427024,1718332256268,-500.0,0.00019178,2]
[329427025,1718332256281,-500.0,0.00019178,2]
[329427026,1718332256307,-500.0,0.00019178,2]
[329427027,1718332256328,-500.0,0.00019178,2]
[329427028,1718332256341,-500.0,0.00019178,2]
[329427029,1718332256362,-546.79267997,0.00019178,2]
[329427030,1718332256375,-500.0,0.00019178,2]
[329427031,1718332256388,-500.0,0.00019178,2]
[329427032,1718332256411,-500.0,0.00019178,2]
[329427033,1718332256434,-181.92441373,0.00019178,2]
[329427034,1718332256667,-151.0,0.00016434,2]
[329427035,1718332256702,-151.0,0.00016434,2]
[329427036,1718332256727,-151.0,0.00016435,2]
[329427037,1718332256758,-168.528761,0.00016436,2]
[329427038,1718332256807,-214.62410743,0.0001863,2]
[329427039,1718332256818,-68.95165237,0.00019178,2]
[329427040,1718332256836,-249.1239339,0.00019178,2]
[329427041,1718332256850,-500.0,0.00019178,2]
[329427042,1718332256861,-500.0,0.00019178,2]
[329427043,1718332256883,-333.81751924,0.00019178,2]
[329427098,1718333437080,-1984.88777217,0.00015356,2]
[329427099,1718333437094,-223.6498915,0.00015357,2]
[329427100,1718333437107,-2795.88857552,0.00015418,2]
[329427101,1718333437117,-300.0,0.00015419,2]
[329427102,1718333437127,-488.57376081,0.0001542,2]
[329427125,1718333440424,-2795.88857552,0.00015417,2]
[329427126,1718333440455,-2795.88857552,0.0001542,2]
[329427127,1718333440484,-1398.8574581,0.00015479,2]
[329427128,1718333440495,-408.64291,0.00016164,2]
[329427129,1718333440506,-394.28367128,0.000164,2]
[329427130,1718333440520,-1468.6,0.00016438,2]
[329427131,1718333440533,-529.27785703,0.0001671,2]
[329427132,1718333440545,-500.0,0.00016711,2]
[329427133,1718333440558,-500.0,0.00016711,2]
[329427134,1718333440586,-1313.76,0.00016711,2]
[329427135,1718333440597,-559.94,0.00016711,2]
[329427136,1718333440617,-447.19622078,0.00016711,2]
[329427137,1718333440628,-500.0,0.00016711,2]
[329427138,1718333440644,-1248.59,0.00016711,2]
[329427139,1718333440664,-500.0,0.00016711,2]
[329427140,1718333440675,-520.54,0.00016711,2]
[329427141,1718333440688,-767.37,0.00016711,2]
[329427142,1718333440715,-1468.6,0.00016712,2]
[329427143,1718333440733,-303.168878,0.000168,6]
[329427144,1718333440746,-789.57431732,0.0001688,2]
[329427145,1718333440766,-1735.83,0.0001698,2]
[329427146,1718333440801,-405.65052361,0.0001698,2]
[329427147,1718333440821,-500.0,0.0001698,2]
[329427148,1718333440836,-500.0,0.0001698,2]
[329427149,1718333440849,-500.0,0.0001698,2]
[329427150,1718333440862,-500.0,0.0001698,2]
[329427151,1718333440874,-4960.12790345,0.00016983,2]
[329427152,1718333440886,-500.0,0.00016984,2]
[329427153,1718333440904,-726.14,0.00016984,2]
[329427154,1718333440915,-500.0,0.00016985,2]
[329427155,1718333440935,-500.0,0.00016985,2]
[329427156,1718333440947,-1035.3,0.00016985,2]
[329427157,1718333440962,-500.0,0.00016985,2]
[329427158,1718333440990,-1313.76,0.00016985,2]
[329427159,1718333441009,-991.49,0.00016985,2]
[329427160,1718333441022,-559.94,0.00016985,2]
[329427161,1718333441033,-976.09,0.00016985,2]
[329427162,1718333441044,-500.0,0.00016985,2]
[329427163,1718333441061,-1248.59,0.00016985,2]
[329427164,1718333441074,-500.0,0.00016985,2]
[329427165,1718333441091,-520.54,0.00016985,2]
[329427166,1718333441108,-2211.23,0.00016985,2]
[329427167,1718333441120,-767.37,0.00016985,2]
[329427168,1718333441136,-1468.6,0.00016986,2]
[329427169,1718333441154,-1735.83,0.00017254,2]
[329427170,1718333441211,-500.0,0.00017254,2]
[329427171,1718333441223,-500.0,0.00017254,2]
[329427172,1718333441240,-500.0,0.00017254,2]
[329427173,1718333441252,-500.0,0.00017254,2]
[329427174,1718333441270,-500.0,0.00017258,2]
[329427175,1718333441287,-726.14,0.00017258,2]
[329427176,1718333441310,-500.0,0.00017259,2]
[329427177,1718333441378,-500.0,0.00017259,2]
[329427178,1718333441390,-1035.3,0.00017259,2]
[329427179,1718333441423,-500.0,0.00017259,2]
[329427180,1718333441453,-1313.76,0.00017259,2]
[329427181,1718333441466,-991.49,0.00017259,2]
[329427182,1718333441477,-559.94,0.00017259,2]
[329427183,1718333441513,-976.09,0.00017259,2]
[329427184,1718333441526,-400.54995924,0.00017259,2]
[329427185,1718333441649,-99.45004076,0.00017259,2]
[329427186,1718333441666,-1248.59,0.00017259,2]
[329427187,1718333441703,-500.0,0.00017259,2]
[329427188,1718333441714,-520.54,0.00017259,2]
[329427189,1718333441726,-1573.86077085,0.00017259,2]
[329427317,1718333446713,-413.27382011,0.0001698,2]
[329427327,1718333446956,-86.72617989,0.0001698,2]
[329427329,1718333446988,-1591.18,0.00016984,2]
[329427331,1718333447001,-500.0,0.00017254,2]
[329427333,1718333447012,-1591.18,0.00017258,2]
[329427335,1718333447024,-637.36922915,0.00017259,2]
[329427337,1718333447038,-767.37,0.00017259,2]
[329427339,1718333447049,-1468.6,0.0001726,2]
[329427341,1718333447062,-500.0,0.00017528,2]
[329427343,1718333447074,-500.0,0.00017528,2]
[329427345,1718333447107,-500.0,0.00017528,2]
[329427346,1718333447121,-500.0,0.00017528,2]
[329427348,1718333447132,-315.79774223,0.00017528,2]
[329427350,1718333447165,-500.0,0.00017532,2]
[329427353,1718333447180,-726.14,0.00017532,2]
[329427354,1718333447196,-1591.18,0.00017532,2]
[329427355,1718333447207,-500.0,0.00017533,2]
[329427356,1718333447224,-1035.3,0.00017533,2]
[329427358,1718333447257,-500.0,0.00017533,2]
[329427359,1718333447269,-1313.76,0.00017533,2]
[329427361,1718333447285,-991.49,0.00017533,2]
[329427363,1718333447317,-559.94,0.00017533,2]
[329427365,1718333447334,-976.09,0.00017533,2]
[329427366,1718333447360,-500.0,0.00017533,2]
[329427368,1718333447384,-1248.59,0.00017533,2]
[329427370,1718333447395,-500.0,0.00017533,2]
[329427372,1718333447422,-520.54,0.00017533,2]
[329427375,1718333447434,-2211.23,0.00017533,2]
[329427378,1718333447446,-767.37,0.00017533,2]
[329427381,1718333447505,-1065.87975468,0.00017534,2]
[329427385,1718333447592,-402.72024532,0.00017534,2]
[329427387,1718333447602,-153.0,0.00017755,2]
[329427389,1718333447618,-153.0,0.00017755,2]
[329427391,1718333447629,-153.0,0.00017755,2]
[329427393,1718333447641,-153.0,0.00017755,2]
[329427395,1718333447657,-153.0,0.00017755,2]
[329427396,1718333447668,-153.0,0.00017755,2]
[329427398,1718333447680,-153.0,0.00017755,2]
[329427401,1718333447703,-153.0,0.00017755,2]
[329427409,1718333447847,-153.0,0.00017755,2]
[329427411,1718333447876,-153.0,0.00017755,2]
[329427412,1718333447906,-1303.14751118,0.00017788,2]
[329427414,1718333447917,-332.98597211,0.00017802,2]
[329427416,1718333447930,-500.0,0.00017802,2]
[329427418,1718333447945,-500.0,0.00017802,2]
[329427420,1718333447957,-500.0,0.00017802,2]
[329427422,1718333447969,-1106.63458842,0.00017806,2]
[329427424,1718333447985,-500.0,0.00017806,2]
[329427425,1718333448020,-726.14,0.00017806,2]
[329427426,1718333448031,-111.99298214,0.00017806,2]
[329427670,1718333655063,5156.47362614,9.999e-05,2]
[329427671,1718333893198,5600.0,0.00014,2]
[329427672,1718334047414,1456.65794785,0.0001,2]
[329427673,1718334177992,208.51418542,9.999e-05,2]
[329427682,1718334557509,1456.65794785,0.0001,2]
[329427683,1718334602575,-385.86722158,0.00014999,2]
[329427684,1718334602655,-275.0873769,0.00014999,2]
[329427685,1718334602782,-385.86722158,0.00014999,2]
[329427766,1718334636769,-1101.38897881,0.00015102,2]
[329427767,1718334636787,-3851.8400062,0.00015103,2]
[329427768,1718334636817,-282.722926,0.00015166,2]
[329427769,1718334636865,-300.0,0.00015571,2]
[329427770,1718334636885,-300.0,0.00015571,2]
[329427771,1718334636916,-21876.7592777,0.00015572,2]
[329427772,1718334636932,-170.793334,0.00015664,2]
[329427773,1718334636951,-1721.8174982,0.00015786,2]
[329427774,1718334636964,-388.210764,0.00016164,2]
[329427775,1718334636978,-394.28367128,0.000164,2]
[329427776,1718334636990,-529.27785703,0.000165,2]
[329427777,1718334637007,-690.87752762,0.00016884,2]
[329427778,1718334637019,-4464.11511311,0.00016956,2]
[329427779,1718334637037,-500.0,0.00016983,2]
[329427780,1718334637052,-1162.64,0.00016984,2]
[329427781,1718334637067,-500.0,0.00017257,2]
[329427782,1718334637078,-1162.64,0.00017258,2]
[329427783,1718334637088,-1084.50848232,0.00017432,2]
[329427784,1718334637103,-500.0,0.00017527,2]
[329427785,1718334637116,-500.0,0.00017527,2]
[329427786,1718334637249,-500.0,0.00017527,2]
[329427787,1718334637269,-1094.8,0.00017527,2]
[329427788,1718334637300,-500.0,0.00017527,2]
[329427789,1718334637327,-500.0,0.00017527,2]
[329427790,1718334637340,-500.0,0.00017527,2]
[329427791,1718334637351,-500.0,0.00017527,2]
[329427792,1718334637363,-500.0,0.00017527,2]
[329427793,1718334637376,-529.23809192,0.00017527,2]
[329427794,1718334637389,-639.47,0.00017527,2]
[329427795,1718334637402,-605.11,0.00017531,2]
[329427796,1718334637425,-1387.62,0.00017531,2]
[329427797,1718334637449,-500.0,0.00017531,2]
[329427798,1718334637460,-500.0,0.00017531,2]
[329427799,1718334637474,-500.0,0.00017531,2]
[329427800,1718334637494,-905.89,0.00017532,2]
[329427801,1718334637508,-500.0,0.00017532,2]
[329427802,1718334637566,-867.55,0.00017532,2]
[329427803,1718334637599,-1162.64,0.00017532,2]
[329427804,1718334637633,-854.08,0.00017532,2]
[329427805,1718334637655,-1934.82,0.00017532,2]
[329427806,1718334637688,-471.29360148,0.00017706,2]
[329427807,1718334637716,-153.0,0.00017755,2]
[329427808,1718334637761,-153.0,0.00017755,2]
[329427809,1718334637778,-153.0,0.00017755,2]
[329427810,1718334637796,-153.0,0.00017755,2]
[329427811,1718334637848,-500.0,0.00017801,2]
[329427812,1718334637864,-500.0,0.00017801,2]
[329427813,1718334637887,-500.0,0.00017801,2]
[329427814,1718334637898,-1094.8,0.00017801,2]
[329427815,1718334637915,-500.0,0.00017801,2]
[329427816,1718334637932,-500.0,0.00017801,2]
[329427817,1718334637947,-500.0,0.00017801,2]
[329427818,1718334637964,-500.0,0.00017801,2]
[329427819,1718334637977,-500.0,0.00017801,2]
[329427820,1718334637994,-639.47,0.00017801,2]
[329427821,1718334638021,-605.11,0.00017805,2]
[329427822,1718334638043,-1387.62,0.00017805,2]
[329427823,1718334638064,-500.0,0.00017805,2]
[329427824,1718334638076,-500.0,0.00017805,2]
[329427825,1718334638089,-500.0,0.00017805,2]
[329427826,1718334638105,-292.01070322,0.00017806,2]
[329427827,1718334638136,-304.64533801,0.00017806,2]
[329427828,1718334638184,-309.23395877,0.00017806,2]
[329427829,1718334638216,-500.0,0.00017806,2]
[329427830,1718334638298,-111.11406714,0.00017806,2]
[329428144,1718334647880,-1456.65794785,0.00016955,2]
[329428146,1718334647900,-554.69,0.00017257,2]
[329428147,1718334647932,-3788.336779,0.00017432,2]
[329428170,1718334648555,-149.82729602,0.00017432,2]
[329428172,1718334648573,-830.4,0.00017527,2]
[329428174,1718334648584,-554.69,0.00017531,2]
[329428176,1718334648594,-830.4,0.00017801,2]
[329428177,1718334648608,-554.69,0.00017805,2]
[329428178,1718334648622,-756.43593286,0.00017806,2]
[329428180,1718334648633,-685.09182977,0.00017806,2]
[329428183,1718334648648,-477.54817023,0.00017806,2]
[329428184,1718334648662,-854.08,0.00017806,2]
[329428186,1718334648692,-898.68320356,0.00017806,2]
[329428545,1718334656101,-797.46,0.00017806,2]
[329428575,1718334656724,-238.67679644,0.00017806,2]
[329428577,1718334656740,-1355.95807405,0.00018,2]
[329428579,1718334656756,-2766.15696949,0.00018,2]
[329428581,1718334656770,-877.05746171,0.00018,2]
[329428583,1718334656783,-782.75614503,0.0001805,2]
[329428584,1718334656794,-500.0,0.00018075,2]
[329428586,1718334656808,-500.0,0.00018075,2]
[329428588,1718334656826,-500.0,0.00018075,2]
[329428590,1718334656856,-1094.8,0.00018075,2]
[329428592,1718334656875,-500.0,0.00018075,2]
[329428593,1718334656908,-500.0,0.00018075,2]
[329428596,1718334656925,-500.0,0.00018075,2]
[329428599,1718334656949,-500.0,0.00018075,2]
[329428601,1718334656985,-500.0,0.00018075,2]
[329428611,1718334657142,-639.47,0.00018075,2]
[329428613,1718334657155,-830.4,0.00018075,2]
[329428615,1718334657168,-1387.62,0.00018079,2]
[329428618,1718334657184,-500.0,0.00018079,2]
[329428620,1718334657196,-500.0,0.00018079,2]
[329428622,1718334657212,-500.0,0.00018079,2]
[329428624,1718334657227,-554.69,0.00018079,2]
[329428625,1718334657239,-63.9079074,0.0001808,2]
[329428630,1718334657295,-333.3986771,0.0001808,2]
[329428640,1718334657467,-102.6934155,0.0001808,2]
[329428642,1718334657492,-867.55,0.0001808,2]
[329428644,1718334657551,-1162.64,0.0001808,2]
[329428646,1718334657575,-854.08,0.0001808,2]
[329428648,1718334657587,-1934.82,0.0001808,2]
[329428650,1718334657603,-581.9403003,0.00018082,2]
[329428653,1718334657637,-471.29360146,0.00018227,2]
[329428655,1718334657649,-447.91146165,0.00018349,2]
[329428657,1718334657660,-500.0,0.00018349,2]
[329428659,1718334657683,-169.95649696,0.00018349,2]
[329428661,1718334657701,-1094.8,0.00018349,2]
[329428663,1718334657714,-500.0,0.00018349,2]
[329428665,1718334657729,-500.0,0.00018349,2]
[329428667,1718334657742,-500.0,0.00018349,2]
[329428669,1718334657774,-500.0,0.00018349,2]
[329428672,1718334657801,-500.0,0.00018349,2]
[329428674,1718334657820,-639.47,0.00018349,2]
[329428676,1718334657840,-830.4,0.00018349,2]
[329428678,1718334657852,-275.75376351,0.00018352,2]
[329428680,1718334657863,-394.28367128,0.00018352,2]
[329428682,1718334657889,-1318.12605037,0.00018352,2]
[329428684,1718334657910,-208.34382459,0.00018353,2]
[329428686,1718334657921,-1387.62,0.00018353,2]
[329428687,1718334657945,-500.0,0.00018353,2]
[329428689,1718334657987,-500.0,0.00018353,2]
[329428691,1718334658000,-500.0,0.00018353,2]
[329428693,1718334658019,-554.69,0.00018353,2]
[329428694,1718334658034,-13934.92755259,0.00018354,13]
[329428697,1718334658050,-24940.87458375,0.00018354,13]
[329428699,1718334658070,-500.0,0.00018354,2]
[329428701,1718334658093,-867.55,0.00018354,2]
[329428704,1718334658110,-1162.64,0.00018354,2]
[329428706,1718334658123,-854.08,0.00018354,2]
[329428707,1718334658155,-1934.82,0.00018354,2]
[329428709,1718334658173,-500.0,0.00018623,2]
[329428711,1718334658184,-1094.8,0.00018623,2]
[329428713,1718334658197,-500.0,0.00018623,2]
[329428715,1718334658215,-500.0,0.00018623,2]
[329428717,1718334658237,-515.13145096,0.00018623,2]
[329428719,1718334658254,-260.30384265,0.00018623,2]
[329428722,1718334658283,-500.0,0.00018623,2]
[329428724,1718334658294,-639.47,0.00018623,2]
[329428726,1718334658306,-830.4,0.00018623,2]
[329428728,1718334658325,-1343.59150643,0.00018626,2]
[329428730,1718334658357,-156.04156718,0.00018627,2]
[329428732,1718334658370,-287.17141865,0.00018627,2]
[329428733,1718334658387,-207.87030122,0.00018627,2]
[329428736,1718334658416,-155.24730532,0.00018627,2]
[329428739,1718334658461,-658.44244046,0.00018627,2]
[329428741,1718334658474,-155.71702173,0.00018627,2]
[329428743,1718334658488,-201.66105204,0.00018627,2]
[329428745,1718334658509,-197.63406654,0.00018627,2]
[329428747,1718334658567,-155.29103753,0.00018627,2]
[329428749,1718334658599,-413.71733739,0.00018627,2]
[329428752,1718334658617,-159.87179456,0.00018627,2]
[329428754,1718334658630,-155.10532895,0.00018627,2]
[329428756,1718334658659,-1387.62,0.00018627,2]
[329428758,1718334658680,-500.0,0.00018627,2]
[329428760,1718334658704,-500.0,0.00018627,2]
[329428761,1718334658715,-500.0,0.00018627,2]
[329428763,1718334658726,-554.69,0.00018627,2]
[329428766,1718334658751,-500.0,0.00018628,2]
[329428768,1718334658788,-867.55,0.00018628,2]
[329428770,1718334658877,-1162.64,0.00018628,2]
[329428773,1718334658941,-854.08,0.00018628,2]
[329428775,1718334658955,-1934.82,0.00018628,2]
[329428777,1718334658967,-238.7762519,0.0001863,2]
[329428779,1718334658980,-186.0,0.0001872,2]
[329428781,1718334658997,-471.29360146,0.00018747,2]
[329428783,1718334659009,-500.0,0.00018897,2]
[329428785,1718334659021,-1094.8,0.00018897,2]
[329428787,1718334659045,-500.0,0.00018897,2]
[329428789,1718334659057,-500.0,0.00018897,2]
[329428791,1718334659071,-500.0,0.00018897,2]
[329428792,1718334659090,-639.47,0.00018897,2]
[329428795,1718334659163,-830.4,0.00018897,2]
[329428797,1718334659189,-1332.13887517,0.00018899,2]
[329428798,1718334659206,-16091.49335412,0.00018899,2]
[329428801,1718334659226,-4633.94417005,0.000189,2]
[329428803,1718334659266,-1387.62,0.00018901,2]
[329428805,1718334659280,-500.0,0.00018901,2]
[329428807,1718334659295,-500.0,0.00018901,2]
[329428809,1718334659309,-500.0,0.00018901,2]
[329428811,1718334659332,-554.69,0.00018901,2]
[329428813,1718334659344,-500.0,0.00018902,2]
[329428815,1718334659357,-867.55,0.00018902,2]
[329428817,1718334659370,-1162.64,0.00018902,2]
[329428819,1718334659387,-854.08,0.00018902,2]
[329428821,1718334659399,-1934.82,0.00018902,2]
[329428823,1718334659411,-304.23423273,0.00018916,2]
[329428825,1718334659423,-3200.0,0.00018976,2]
[329428827,1718334659453,-3200.0,0.00018976,2]
[329428828,1718334659464,-3200.0,0.00018976,2]
[329428831,1718334659482,-3200.0,0.00018976,2]
[329428833,1718334659496,-3200.0,0.00018976,2]
[329428835,1718334659512,-300.0,0.00018978,2]
[329428837,1718334659532,-163.19209839,0.00019,2]
[329428839,1718334659548,-6543.46493708,0.00019,2]
[329428841,1718334659571,-473.56615302,0.00019077,2]
[329428843,1718334659593,-339.20830262,0.00019171,2]
[329428845,1718334659616,-1094.8,0.00019171,2]
[329428848,1718334659633,-500.0,0.00019171,2]
[329428850,1718334659677,-500.0,0.00019171,2]
[329428852,1718334659711,-500.0,0.00019171,2]
[329428854,1718334659733,-639.47,0.00019171,2]
[329428856,1718334659760,-830.4,0.00019171,2]
[329428858,1718334659783,-32509.72545677,0.00019175,15]
[329428860,1718334659799,-1387.62,0.00019175,2]
[329428861,1718334659813,-500.0,0.00019175,2]
[329428863,1718334659833,-500.0,0.00019175,2]
[329428865,1718334659852,-395.22030625,0.00019175,2]
[329428867,1718334659873,-554.69,0.00019175,2]
[329428869,1718334659893,-500.0,0.00019176,2]
[329428871,1718334659916,-867.55,0.00019176,2]
[329428873,1718334659933,-1162.64,0.00019176,2]
[329428875,1718334659944,-854.08,0.00019176,2]
[329428877,1718334659958,-3200.0,0.00019176,2]
[329428879,1718334659972,-1934.82,0.00019176,2]
[329428881,1718334659985,-500.0,0.00019178,2]
[329428883,1718334659998,-500.0,0.00019178,2]
[329428887,1718334660055,-500.80699999,0.00019178,2]
[329428889,1718334660067,-472.50629104,0.00019178,2]
[329428891,1718334660090,-195.43152444,0.00019178,2]
[329428894,1718334660132,-500.0,0.00019178,2]
[329428895,1718334660184,-500.0,0.00019178,2]
[329428897,1718334660195,-514.58861848,0.00019178,2]
[329428899,1718334660207,-372.46335035,0.00019178,2]
[329428902,1718334660220,-500.0,0.00019178,2]
[329428903,1718334660241,-500.0,0.00019178,2]
[329428905,1718334660253,-500.0,0.00019178,2]
[329428907,1718334660267,-250.0,0.00019178,2]
[329428909,1718334660280,-500.0,0.00019178,2]
[329428911,1718334660292,-232.432865,0.00019178,2]
[329428914,1718334660328,-244.6661854,0.00019178,2]
[329428917,1718334660355,-151.0,0.00019178,2]
[329428918,1718334660383,-471.29360146,0.00019268,2]
[329428920,1718334660400,-1094.8,0.00019445,2]
[329428923,1718334660414,-500.0,0.00019445,2]
[329428925,1718334660430,-500.0,0.00019445,2]
[329428927,1718334660470,-500.0,0.00019445,2]
[329428929,1718334660501,-3200.0,0.00019445,2]
[329428931,1718334660516,-639.47,0.00019445,2]
[329428933,1718334660540,-830.4,0.00019445,2]
[329428935,1718334660554,-1387.62,0.00019449,2]
[329428937,1718334660588,-500.0,0.00019449,2]
[329428939,1718334660621,-500.0,0.00019449,2]
[329428941,1718334660636,-554.69,0.00019449,2]
[329428943,1718334660652,-891.340848,0.0001945,2]
[329428945,1718334660666,-891.340848,0.0001945,2]
[329428947,1718334660682,-500.0,0.0001945,2]
[329428949,1718334660712,-867.55,0.0001945,2]
[329428951,1718334660728,-1162.64,0.0001945,2]
[329428953,1718334660743,-854.08,0.0001945,2]
[329428956,1718334660759,-1934.82,0.0001945,2]
[329428958,1718334660787,-1000.0,0.000195,2]
[329428960,1718334660817,-1094.8,0.00019719,2]
[329428962,1718334660835,-500.0,0.00019719,2]
[329428964,1718334660855,-500.0,0.00019719,2]